bitfinex/quotes_ETHUSD_20250905
["timestamp","ask_amount","ask_price","bid_price","bid_amount"]
[1757096354108,0.001,4299.4,4299.3,15.10543751]
[1757096357027,0.001,4299.4,4299.3,25.16643279]
[1757096357202,0.001,4299.4,4299.3,13.57713751]
[1757096357397,0.001,4299.4,4299.3,17.49813751]
[1757096358532,0.687,4299.4,4299.3,17.49813751]
[1757096358735,0.001,4299.4,4299.3,17.49813751]
[1757096359252,0.001,4299.4,4299.3,18.25323751]
[1757096360426,0.001,4299.4,4299.3,24.82593279]
[1757096360606,0.001,4299.4,4299.3,24.07083279]
[1757096363929,0.001,4299.4,4299.3,24.35603279]
[1757096364132,0.001,4299.4,4299.3,24.54073279]
[1757096364308,0.001,4299.4,4299.3,24.82593279]
[1757096364700,0.001,4299.4,4299.3,24.07083279]
[1757096366316,0.001,4299.4,4299.3,24.82593279]
[1757096368001,0.001,4299.4,4299.3,25.61793279]
[1757096368255,0.001,4299.4,4299.3,26.11623279]
[1757096372622,0.001,4299.4,4299.3,25.61793279]
[1757096374938,0.001,4299.4,4299.3,26.11623279]
[1757096378122,1e-08,4299.8,4299.7,3.11774365]
[1757096378312,1e-08,4299.8,4299.7,17.568794]
[1757096378639,1e-08,4299.8,4299.7,18.323894]
[1757096378818,1e-08,4299.8,4299.7,11.75119872]
[1757096379018,1e-08,4299.8,4299.7,18.038694]
[1757096379214,1e-08,4299.8,4299.7,18.344494]
[1757096379721,1e-08,4299.8,4299.7,18.330094]
[1757096381117,1e-08,4299.8,4299.7,18.815494]
[1757096381530,1e-08,4299.8,4299.7,19.285594]
[1757096382428,1e-08,4299.8,4299.7,25.185594]
[1757096383850,1e-08,4299.8,4299.7,24.700194]
[1757096384651,1e-08,4299.8,4299.7,20.782194]
[1757096385148,1e-08,4299.8,4299.7,24.699194]
[1757096385842,0.49280001,4299.8,4299.7,24.699194]
[1757096386042,0.2159,4300.7,4300.0,6.11758139]
[1757096386241,0.2159,4300.7,4300.6,2.44125694]
[1757096386425,0.2159,4300.7,4300.6,6.35825694]
[1757096386751,0.2181,4300.7,4300.6,6.35825694]
[1757096388151,0.7109,4300.7,4300.6,6.35825694]
[1757096388652,0.7088,4300.7,4300.6,6.35725694]
[1757096388816,0.7088,4300.7,4300.6,12.25725694]
[1757096389664,0.495,4300.7,4300.6,12.25725694]
[1757096392067,0.495,4300.7,4300.6,15.96345693]
[1757096392786,0.7088,4300.7,4300.6,12.04745693]
[1757096392960,0.7088,4300.7,4300.6,15.96345693]
[1757096393276,0.495,4300.7,4300.6,15.96345693]
[1757096396257,0.495,4300.7,4300.6,15.96245693]
[1757096396781,0.0022,4300.7,4300.6,15.96245693]
[1757096397653,0.495,4300.7,4300.6,15.96245693]
[1757096398680,0.0022,4300.7,4300.6,15.96245693]
[1757096401171,0.025,4300.8,4300.7,2.32520287]
[1757096401544,0.025,4300.8,4300.7,3.08650287]
[1757096401751,1e-08,4300.8,4300.7,25.25481934]
[1757096401974,1e-08,4300.8,4300.7,25.93031016]
[1757096402161,1e-08,4300.8,4300.7,9.45655836]
[1757096402369,0.49500001,4300.8,4300.7,12.13920287]
[1757096403169,0.00220001,4300.8,4300.7,12.13920287]
[1757096403388,1e-08,4300.8,4300.7,12.59470287]
[1757096403590,0.00430001,4300.8,4300.7,12.13920287]
[1757096403763,0.49710001,4300.8,4300.7,12.13920287]
[1757096404366,0.00430001,4300.8,4300.7,12.13920287]
[1757096405188,0.49710001,4300.8,4300.7,8.22520287]
[1757096405494,0.49710001,4300.8,4300.7,12.13920287]
[1757096405786,0.00430001,4300.8,4300.7,12.13920287]
[1757096407153,0.49710001,4300.8,4300.7,8.22520287]
[1757096407354,0.49710001,4300.8,4300.7,12.13920287]
[1757096407805,0.00430001,4300.8,4300.7,12.13920287]
[1757096408186,1e-08,4300.8,4300.7,12.93040287]
[1757096408350,1e-08,4300.8,4300.7,14.45596885]
[1757096408554,1e-08,4300.8,4300.7,12.59470287]
[1757096408787,0.21590001,4300.8,4300.7,12.13920287]
[1757096410587,0.67550001,4300.8,4300.7,6.23920287]
[1757096410764,0.67550001,4300.8,4300.7,2.32520287]
[1757096411085,0.21590001,4300.8,4300.7,2.32520287]
[1757096413410,1e-08,4300.8,4300.7,2.32520287]
[1757096413560,1e-08,4300.8,4300.7,3.04950287]
[1757096413964,1e-08,4300.8,4300.7,2.75580287]
[1757096414162,1e-08,4300.8,4300.7,2.32520287]
[1757096414774,1e-08,4300.8,4300.7,3.04950287]
[1757096419004,1e-08,4300.8,4300.7,2.32520287]
[1757096421175,0.09900001,4300.8,4300.7,6.23820287]
[1757096421371,0.55860001,4300.8,4300.7,2.32520287]
[1757096422313,0.10000001,4300.8,4300.7,2.32520287]
[1757096423805,0.00100001,4300.8,4300.7,7.44200287]
[1757096425096,0.00100001,4300.8,4300.7,6.96150287]
[1757096425906,0.00100001,4300.8,4300.7,8.91085032]
[1757096426210,0.00100001,4300.8,4300.7,9.50735032]
[1757096426404,0.00100001,4300.8,4300.7,7.07750287]
[1757096430016,0.00100001,4300.8,4300.7,12.97750287]
[1757096430586,0.00100001,4300.8,4300.7,13.45800287]
[1757096433924,0.00100001,4300.8,4300.7,12.97750287]
[1757096434292,0.55960001,4300.8,4300.6,0.004]
[1757096434494,0.00100001,4300.8,4300.6,0.004]
[1757096434737,0.46060001,4300.8,4300.6,0.4346]
[1757096434904,0.46060001,4300.8,4300.6,2.32921012]
[1757096435096,0.00100001,4300.8,4300.7,2.32520287]
[1757096435294,0.00100001,4300.8,4300.7,3.04950287]
[1757096435498,0.00100001,4300.8,4300.7,4.11593293]
[1757096437494,0.00100001,4300.8,4300.7,3.63543293]
[1757096437728,0.00100001,4300.8,4300.7,2.32520287]
[1757096438503,0.10000001,4300.8,4300.7,2.32520287]
[1757096438732,0.10000001,4300.8,4300.7,8.22520287]
[1757096439432,0.10000001,4300.8,4300.7,2.32520287]
[1757096440945,0.10000001,4300.8,4300.6,0.004]
[1757096441107,0.10000001,4300.8,4300.7,2.32520287]
[1757096442594,0.00100001,4300.8,4300.7,2.32520287]
[1757096443536,0.10000001,4300.8,4300.7,2.32520287]
[1757096443828,0.00100001,4300.8,4300.7,2.32520287]
[1757096444336,0.11700001,4300.8,4300.7,2.62660287]
[1757096444509,0.00100001,4300.8,4300.7,3.09580287]
[1757096444704,0.00100001,4300.8,4300.7,3.55300287]
[1757096445027,0.00100001,4300.8,4300.7,3.09580287]
[1757096446039,0.00100001,4300.8,4300.7,2.32520287]
[1757096446248,3.11720287,4300.7,4300.6,0.004]
[1757096446549,3.11720287,4300.7,4298.7,0.4692]
[1757096446550,0.792,4300.5,4299.3,0.4692]
[1757096446733,2.32541202,4300.4,4299.5,2.3258434]
[1757096446939,2.62121915,4300.3,4299.4,2.32588191]
[1757096447255,2.64231915,4300.3,4299.5,2.32584091]
[1757096447433,3.13981915,4300.3,4299.4,2.32589543]
[1757096447750,6.13981915,4300.3,4299.2,0.004]
[1757096448304,6.13981915,4300.3,4299.2,2.32999682]
[1757096448505,6.13981915,4300.3,4299.2,0.004]
[1757096449340,6.13981915,4300.3,4299.2,2.32998101]
[1757096449837,6.13981915,4300.3,4299.2,0.004]
[1757096450911,6.93181915,4300.3,4299.2,0.004]
[1757096452035,10.84181915,4300.3,4299.2,0.004]
[1757096452205,10.84181915,4300.3,4299.2,0.4732]
[1757096452402,10.93504458,4300.3,4299.2,0.4732]
[1757096454105,10.93504458,4300.3,4299.4,0.4692]
[1757096454106,10.91394458,4300.3,4299.4,0.4692]
[1757096454826,6.11871915,4300.3,4299.5,0.4692]
[1757096455037,6.11871915,4300.3,4299.8,0.4692]
[1757096455038,17.75757096,4300.3,4299.8,0.4692]
[1757096455539,13.84757096,4300.3,4299.5,0.4692]
[1757096455743,0.792,4300.1,4299.2,0.004]
[1757096455918,13.05459546,4299.7,4299.2,0.004]
[1757096456120,17.26319546,4299.7,4299.2,0.004]
[1757096456622,17.76069546,4299.7,4299.2,0.004]
[1757096461225,18.57099546,4299.7,4299.2,0.004]
[1757096462924,18.55269546,4299.7,4299.2,0.004]
[1757096463465,17.39958057,4299.7,4299.2,0.004]
[1757096465660,16.90208057,4299.7,4299.2,0.4732]
[1757096465856,17.01639339,4299.7,4299.2,0.4732]
[1757096466377,16.90208057,4299.7,4299.2,0.4732]
[1757096466944,16.60348057,4299.7,4299.2,0.4732]
[1757096467149,16.60348057,4299.7,4299.4,0.4692]
[1757096467951,16.60348057,4299.7,4299.2,0.4612]
[1757096467952,2.32574365,4299.7,4299.6,1.2318]
[1757096468184,3.911,4299.7,4299.6,1.2318]
[1757096468383,6.911,4299.7,4299.6,1.2318]
[1757096471504,9.23674365,4299.7,4299.6,1.2318]
[1757096471902,6.911,4299.7,4299.6,1.2318]
[1757096472200,9.23674365,4299.7,4299.6,1.2318]
[1757096472588,6.911,4299.7,4299.6,1.2318]
[1757096473104,15.81248057,4299.7,4299.6,1.2318]
[1757096473662,11.90148057,4299.7,4299.6,1.2318]
[1757096473862,15.81248057,4299.7,4299.6,1.2318]
[1757096474887,13.48673692,4299.7,4299.6,1.2318]
[1757096475091,0.166,4300.2,4299.6,8.16330727]
[1757096475262,0.00100001,4300.8,4299.7,0.9381]
[1757096475459,0.92700001,4300.8,4300.7,2.32520287]
[1757096475690,0.92700001,4300.8,4300.7,2.62670287]
[1757096475691,0.00100001,4300.8,4300.7,2.62670287]
[1757096475904,3.73600001,4300.8,4300.7,3.56480287]
[1757096477806,3.73600001,4300.8,4300.7,0.7751]
[1757096479807,3.73600001,4300.8,4300.7,1.2396]
[1757096481282,3.73600001,4300.8,4300.7,0.7751]
[1757096481681,3.73600001,4300.8,4299.8,5.9]
[1757096481682,3.83500001,4300.8,4299.8,5.9]
[1757096481884,3.83500001,4300.8,4299.0,0.004]
[1757096481885,6.57573692,4299.9,4299.6,0.004]
[1757096482084,3.91,4299.8,4299.6,0.004]
[1757096482379,3.91,4299.8,4299.7,0.4736]
[1757096482584,3.91,4299.8,4299.7,0.7791]
[1757096483298,3.91,4299.8,4299.7,1.2436]
[1757096484718,3.91,4299.8,4299.7,0.7791]
[1757096485124,4.026,4299.8,4299.7,0.7791]
[1757096485321,10.60173692,4299.8,4299.7,0.004]
[1757096485917,10.60173692,4299.8,4299.7,0.7791]
[1757096491228,10.60173692,4299.8,4299.7,0.004]
[1757096491727,13.24002648,4299.8,4299.7,0.004]
[1757096491928,16.70932648,4299.8,4299.7,0.004]
[1757096492095,16.70482648,4299.8,4299.7,0.004]
[1757096492297,16.24002648,4299.8,4299.7,0.004]
[1757096495311,15.92742648,4299.8,4299.7,0.004]
[1757096496438,16.02642648,4299.8,4299.7,0.004]
[1757096496734,16.49122648,4299.8,4299.7,0.004]
[1757096496918,16.02642648,4299.8,4299.7,0.004]
[1757096497603,5.44168956,4299.8,4299.7,0.004]
[1757096497804,0.116,4299.8,4299.7,1.2436]
[1757096498109,4.026,4299.8,4299.7,3.56934365]
[1757096498709,4.026,4299.8,4299.7,1.2436]
[1757096500725,4.026,4299.8,4299.7,3.56934365]
[1757096501331,4.026,4299.8,4299.7,1.2436]
[1757096502446,0.116,4299.8,4299.7,1.2436]
[1757096502649,4.026,4299.8,4299.7,1.2436]
[1757096505644,0.116,4299.8,4299.7,3.56934365]
[1757096506050,0.001,4300.2,4299.9,2.32562339]
[1757096506220,0.001,4300.2,4299.8,3.24366331]
[1757096506221,4.026,4300.1,4299.8,3.24366331]
[1757096506421,7.026,4300.1,4300.0,0.2948]
[1757096506618,7.026,4300.1,4300.0,0.7431]
[1757096506818,3.116,4300.1,4300.0,0.7431]
[1757096507018,7.026,4300.1,4300.0,0.7431]
[1757096507220,7.026,4300.1,4300.0,1.2128]
[1757096507851,0.116,4300.1,4300.0,3.53838139]
[1757096508052,4.026,4300.1,4300.0,3.53838139]
[1757096508377,0.001,4300.2,4300.1,2.32552731]
[1757096508523,3.91,4300.2,4300.1,2.32552731]
[1757096508848,3.91,4300.2,4300.1,3.53832731]
[1757096509416,0.001,4300.2,4300.1,3.53832731]
[1757096509623,3.91,4300.2,4300.1,3.53832731]
[1757096509830,0.001,4300.2,4300.1,3.53832731]
[1757096510035,3.91,4300.2,4300.1,4.18339825]
[1757096512036,0.001,4300.2,4300.1,4.18339825]
[1757096513226,0.001,4300.2,4300.1,10.87513517]
[1757096513657,0.001,4300.2,4300.1,18.49033516]
[1757096513858,0.001,4300.2,4300.1,24.39033516]
[1757096516878,0.001,4300.2,4300.1,24.27433516]
[1757096517178,0.001,4300.2,4300.1,24.39033516]
[1757096523384,0.001,4300.2,4300.1,20.48133516]
[1757096523570,0.001,4300.2,4300.1,24.38933516]
[1757096525274,0.001,4300.2,4300.1,27.38933516]
[1757096525489,0.001,4300.2,4300.1,28.54243895]
[1757096526874,0.001,4300.2,4300.1,24.83623896]
[1757096533524,0.001,4300.2,4300.1,24.83623896]
[1757096536516,0.001,4300.2,4300.1,24.36653896]
[1757096536695,0.1,4300.2,4300.1,8.34152731]
[1757096536904,0.7833,4300.2,4300.1,2.44152731]
[1757096537217,0.7833,4300.2,4300.1,2.32552731]
[1757096538894,0.5674,4300.2,4300.1,2.32552731]
[1757096539907,0.1,4300.2,4300.1,2.32552731]
[1757096540918,0.5674,4300.2,4300.0,2.32555605]
[1757096541126,0.3159,4300.2,4300.1,2.32552731]
[1757096541833,0.7833,4300.2,4300.1,2.32552731]
[1757096542013,0.5674,4300.2,4300.1,2.32552731]
[1757096542733,0.1,4300.2,4300.1,2.32552731]
[1757096543040,0.1,4300.2,4300.1,3.04122731]
[1757096543041,0.001,4300.2,4300.1,3.04122731]
[1757096543245,0.001,4300.2,4300.1,5.10650674]
[1757096543542,0.001,4300.2,4300.1,5.60360674]
[1757096543744,0.001,4300.2,4300.1,5.10650674]
[1757096543943,0.1,4300.2,4300.1,4.39080674]
[1757096544514,0.1,4300.2,4300.1,2.44152731]
[1757096544716,0.1,4300.2,4300.1,8.34152731]
[1757096545050,0.5674,4300.2,4300.1,8.34152731]
[1757096545238,0.5674,4300.2,4300.1,8.22552731]
[1757096545614,0.1,4300.2,4300.1,8.22552731]
[1757096546734,0.1,4300.2,4300.1,2.32552731]
[1757096546921,0.001,4300.2,4300.1,2.32552731]
[1757096547437,0.1,4300.2,4300.1,2.32552731]
[1757096547752,0.001,4300.2,4300.1,2.32552731]
[1757096549716,0.001,4300.2,4300.1,8.38843267]
[1757096550025,0.001,4300.2,4300.1,9.43123267]
[1757096550742,0.001,4300.2,4300.1,15.33123267]
[1757096552171,0.001,4300.2,4300.1,19.03743266]
[1757096552675,0.001,4300.2,4300.1,18.92143266]
[1757096552877,0.001,4300.2,4300.1,22.71343266]
[1757096554473,0.001,4300.7,4300.6,2.32525694]
[1757096554678,0.001,4300.7,4300.6,21.13035514]
[1757096554973,0.001,4300.7,4300.6,22.34315514]
[1757096555154,0.001,4300.7,4300.6,28.24315514]
[1757096555668,0.001,4300.7,4300.6,29.03515514]
[1757096556443,0.001,4300.7,4300.6,29.12830892]
[1757096558040,0.001,4300.7,4300.6,36.29830892]
[1757096558858,0.001,4300.7,4300.6,31.60030892]
[1757096559201,0.001,4300.7,4300.6,35.41315514]
[1757096559395,0.001,4300.7,4300.6,34.91605514]
[1757096559702,0.001,4300.7,4300.6,35.36725514]
[1757096559856,0.001,4300.7,4300.6,34.48535514]
[1757096560258,0.001,4300.7,4300.6,34.96025514]
[1757096560483,0.001,4300.7,4300.6,35.41145514]
[1757096560677,0.001,4300.7,4300.6,34.96025514]
[1757096561499,0.001,4300.7,4300.6,35.41145514]
[1757096562058,0.001,4300.7,4300.6,35.5046189]
[1757096562672,0.001,4300.7,4300.6,35.6206189]
[1757096563686,0.001,4300.7,4300.6,35.1694189]
[1757096563991,0.001,4300.7,4300.6,28.4506189]
[1757096567788,0.001,4300.7,4300.6,27.2385189]
[1757096568094,0.001,4300.7,4300.6,22.1184189]
[1757096569872,0.001,4300.7,4300.6,28.4696189]
[1757096571806,0.001,4300.7,4300.6,24.5646189]
[1757096572012,0.001,4300.7,4300.6,28.4686189]
[1757096572799,0.001,4300.7,4300.6,28.0174189]
[1757096573388,0.001,4300.7,4300.6,28.4686189]
[1757096575122,0.1,4300.7,4300.6,15.60467819]
[1757096575414,0.5506,4300.7,4300.6,6.34525694]
[1757096576233,0.1,4300.7,4300.6,6.34525694]
[1757096576592,0.001,4300.7,4300.6,12.24525694]
[1757096578428,0.1,4300.7,4300.6,12.24525694]
[1757096578951,0.7665,4300.7,4300.6,2.32525694]
[1757096579130,2.32529177,4300.6,4300.3,0.116]
[1757096579309,0.116,4300.4,4300.1,2.32952076]
[1757096579639,0.1002,4300.2,4300.1,2.32952076]
[1757096579808,0.7656,4300.2,4300.1,2.32952076]
[1757096580726,0.5508,4300.2,4300.1,2.32952076]
[1757096580935,0.1002,4300.2,4300.1,2.44552076]
[1757096581430,0.5508,4300.2,4300.1,2.44552076]
[1757096582434,0.1002,4300.2,4300.1,2.44552076]
[1757096583449,0.4506,4300.6,4300.5,2.32531101]
[1757096583649,0.5496,4300.6,4300.5,2.32531101]
[1757096584238,0.001,4300.7,4300.6,2.32525694]
[1757096584426,0.001,4300.7,4300.6,3.2884663]
[1757096584619,0.001,4300.7,4300.6,4.02141374]
[1757096585119,0.001,4300.7,4300.6,4.0446663]
[1757096585767,0.001,4300.7,4300.6,16.51018025]
[1757096585922,0.001,4300.7,4300.6,16.48692769]
[1757096586420,0.001,4300.7,4300.6,16.03572769]
[1757096586652,0.001,4300.7,4300.6,16.48692769]
[1757096587152,0.001,4300.7,4300.6,17.27892769]
[1757096587318,0.001,4300.7,4300.6,20.27892769]
[1757096587916,0.001,4300.7,4300.6,13.71341374]
[1757096588955,0.001,4300.7,4300.6,20.27892769]
[1757096590628,0.001,4300.7,4300.6,13.71341374]
[1757096591663,0.2934,4300.7,4300.6,11.78347381]
[1757096591843,0.001,4300.7,4300.6,15.22241701]
[1757096593472,0.001,4300.7,4300.6,15.99351701]
[1757096594469,0.001,4300.7,4300.6,16.10951701]
[1757096594668,0.001,4300.7,4300.6,12.20551701]
[1757096594872,0.001,4300.7,4300.6,16.10851701]
[1757096595078,0.001,4300.7,4300.6,18.37642498]
[1757096595232,0.001,4300.7,4300.6,18.83082498]
[1757096595437,0.001,4300.7,4300.6,19.62282498]
[1757096600494,0.4867,4302.6,4302.5,2.32423009]
[1757096600646,0.5857,4302.6,4302.5,6.22723009]
[1757096601043,0.5857,4302.6,4302.5,12.12723009]
[1757096601647,0.8016,4302.6,4302.5,12.12723009]
[1757096602340,0.5857,4302.6,4302.5,12.12723009]
[1757096602740,0.8016,4302.6,4302.5,12.12723009]
[1757096603857,0.8016,4302.6,4302.5,2.32423009]
[1757096604052,1.5408114,4302.6,4302.5,2.32423009]
[1757096606376,0.8016,4302.6,4302.5,2.32423009]
[1757096608270,7.36711395,4302.6,4301.9,2.32453282]
[1757096608476,7.36711395,4302.6,4301.9,2.32452706]
[1757096608477,6.56551395,4302.0,4301.9,2.32452706]
[1757096608673,6.56551395,4302.0,4300.7,2.78917652]
[1757096608674,7.36721395,4302.0,4301.8,2.32459474]
[1757096608996,0.7015,4301.9,4301.8,2.32459474]
[1757096609492,0.588,4301.9,4301.8,2.32459474]
[1757096609861,0.1013,4301.9,4301.8,2.32459474]
[1757096611293,0.116,4302.2,4301.5,6.016]
[1757096611498,0.6277,4302.8,4302.7,2.32412206]
[1757096611794,0.7267,4302.8,4302.7,2.32412206]
[1757096614700,0.7277,4302.8,4302.7,2.32412206]
[1757096615402,0.7277,4302.8,4302.7,2.53984004]
[1757096615921,0.7277,4302.8,4302.7,0.21571798]
[1757096616079,0.9436,4302.8,4302.7,0.21571798]
[1757096616706,0.9436,4302.8,4302.7,2.53984004]
[1757096617110,0.7277,4302.8,4302.7,2.53984004]
[1757096618288,0.7277,4302.8,4302.7,0.21571798]
[1757096618478,4.6297,4302.8,4302.7,2.53984004]
[1757096618679,4.143,4302.8,4302.7,2.53984004]
[1757096618875,4.6297,4302.8,4302.7,0.21571798]
[1757096619406,4.143,4302.8,4302.7,2.53984004]
[1757096619912,4.143,4302.8,4302.7,0.21571798]
[1757096620410,4.6009,4302.8,4302.7,0.21571798]
[1757096621111,4.143,4302.8,4302.7,2.53984004]
[1757096621293,0.241,4302.8,4302.7,2.53984004]
[1757096621479,4.143,4302.8,4302.7,2.53984004]
[1757096621879,4.044,4302.8,4302.7,2.53984004]
[1757096622998,0.142,4302.8,4302.7,2.53984004]
[1757096623194,4.044,4302.8,4302.7,2.53984004]
[1757096624409,4.143,4302.8,4302.7,0.21571798]
[1757096624808,4.143,4302.8,4302.7,2.53984004]
[1757096625000,4.143,4302.8,4302.7,0.21571798]
[1757096625506,4.6009,4302.8,4302.7,0.21571798]
[1757096625931,4.8168,4302.8,4302.7,0.21571798]
[1757096626116,7.14086804,4302.8,4302.7,0.21571798]
[1757096626287,7.14086804,4302.8,4301.5,4.3335]
[1757096626288,4.8168,4302.8,4301.7,2.32466234]
[1757096626493,6.56551395,4302.5,4302.3,2.32430899]
[1757096626693,4.0022,4302.4,4302.3,2.32430899]
[1757096626888,4.0022,4302.4,4302.3,0.21602999]
[1757096627097,4.6749,4302.4,4302.3,0.21602999]
[1757096627393,4.4601,4302.4,4302.3,0.21602999]
[1757096627597,11.02561395,4302.4,4302.3,0.21602999]
[1757096628484,4.0022,4302.4,4302.3,0.21602999]
[1757096628684,10.56771395,4302.4,4302.3,0.21602999]
[1757096629305,11.02561395,4302.4,4302.3,0.21602999]
[1757096631921,11.02561395,4302.4,4302.3,2.54036813]
[1757096632219,10.56771395,4302.4,4302.3,2.54036813]
[1757096632992,10.46751395,4302.4,4302.3,2.54036813]
[1757096633187,6.56551395,4302.4,4302.3,0.52342999]
[1757096633530,10.46751395,4302.4,4302.3,3.27926813]
[1757096634193,6.56551395,4302.4,4302.3,3.27926813]
[1757096634394,10.46651395,4302.4,4302.3,0.21602999]
[1757096635085,11.67810548,4302.4,4302.3,0.21602999]
[1757096635404,4.4579,4302.4,4302.3,0.21602999]
[1757096635615,11.02341395,4302.4,4302.3,0.21602999]
[1757096636019,10.56551395,4302.4,4302.3,0.21602999]
[1757096638622,0.116,4302.3,4302.2,2.32434723]
[1757096638822,0.116,4302.3,4302.2,2.54059363]
[1757096639021,0.2162,4302.3,4302.2,2.54059363]
[1757096639913,0.116,4302.3,4302.2,2.54059363]
[1757096640222,0.116,4302.3,4302.2,0.2162464]
[1757096640422,0.2162,4302.3,4302.2,0.2162464]
[1757096640621,6.68151395,4302.3,4302.2,2.54063857]
[1757096641425,6.68151395,4302.3,4302.2,0.9551464]
[1757096641728,7.23841395,4302.3,4302.2,0.2162464]
[1757096642699,9.56275209,4302.3,4302.2,0.2162464]
[1757096642899,7.23841395,4302.3,4302.2,0.2162464]
[1757096644127,9.77865209,4302.3,4302.2,0.2162464]
[1757096644303,7.45431395,4302.3,4301.8,0.004]
[1757096644507,3.901,4302.2,4301.9,0.21628412]
[1757096644825,3.901,4302.2,4301.8,0.004]
[1757096645030,0.1002,4301.9,4301.8,0.004]
[1757096645213,4.0012,4301.9,4301.8,0.004]
[1757096645413,3.901,4301.9,4301.8,0.004]
[1757096645952,10.46651395,4301.9,4301.8,0.004]
[1757096646328,13.34796821,4301.9,4301.8,0.004]
[1757096646698,22.91348216,4301.9,4301.8,0.004]
[1757096646897,23.12938216,4301.9,4301.8,0.004]
[1757096647622,17.7307491,4301.9,4301.8,0.004]
[1757096647819,18.5227491,4301.9,4301.8,0.004]
[1757096648728,10.84921931,4301.4,4301.3,0.004]
[1757096648900,19.46321931,4301.4,4301.3,0.004]
[1757096649097,20.23611931,4301.4,4301.3,0.004]
[1757096650934,20.02131931,4301.4,4301.3,0.004]
[1757096651104,20.23611931,4301.4,4301.3,0.004]
[1757096654443,16.33511931,4301.4,4301.3,0.004]
[1757096654644,20.23711931,4301.4,4301.3,0.004]
[1757096655245,20.02131931,4301.4,4301.3,0.004]
[1757096656016,20.23611931,4301.4,4301.3,0.004]
[1757096662649,20.02131931,4301.4,4301.3,0.004]
[1757096663153,6.11704068,4301.0,4300.9,0.004]
[1757096663469,17.75143552,4301.0,4300.9,0.004]
[1757096663766,17.85273552,4301.0,4300.9,0.004]
[1757096663950,17.97189553,4301.0,4300.9,0.004]
[1757096665359,18.44029553,4301.0,4300.9,0.004]
[1757096665760,17.97189553,4301.0,4300.9,0.004]
[1757096666255,18.44029553,4301.0,4300.9,0.004]
[1757096666757,18.44029553,4301.0,4300.0,0.4493]
[1757096666758,2.3251488,4300.8,4300.0,0.4493]
[1757096666956,2.32541915,4300.3,4300.0,0.4493]
[1757096667157,7.94047323,4300.2,4300.0,0.4493]
[1757096667366,7.94047323,4300.2,4299.8,0.4883]
[1757096667537,7.94047323,4300.2,4300.1,0.7651]
[1757096668044,7.94047323,4300.2,4300.1,1.2144]
[1757096669242,8.73247323,4300.2,4300.1,0.004]
[1757096669641,8.73247323,4300.2,4300.1,0.4533]
[1757096669846,8.73247323,4300.2,4300.1,0.7511]
[1757096670474,8.73247323,4300.2,4300.1,1.2144]
[1757096671170,4.83047323,4300.2,4300.1,1.2144]
[1757096671354,8.73247323,4300.2,4300.1,1.2144]
[1757096671862,7.94047323,4300.2,4300.1,1.2144]
[1757096672769,4.03847323,4300.2,4300.1,1.2144]
[1757096672977,7.94047323,4300.2,4300.1,1.2144]
[1757096674387,4.03847323,4300.2,4300.1,1.2144]
[1757096674678,8.614,4300.2,4300.1,1.2144]
[1757096674897,10.93947323,4300.2,4300.1,1.2144]
[1757096675057,8.614,4300.2,4300.1,1.2144]
[1757096675382,10.93947323,4300.2,4300.1,1.2144]
[1757096676348,10.93947323,4300.2,4300.1,0.3018]
[1757096676579,10.93947323,4300.2,4300.1,0.004]
[1757096676784,19.56286807,4300.2,4300.1,0.004]
[1757096677255,20.03126807,4300.2,4300.1,0.004]
[1757096677458,20.24716807,4300.2,4300.1,0.004]
[1757096677679,21.3597596,4300.2,4300.1,0.004]
[1757096677867,20.03126807,4300.2,4300.1,0.004]
[1757096679792,20.24716807,4300.2,4300.1,0.004]
[1757096680297,20.03126807,4300.2,4300.1,0.004]
[1757096682102,3.11768956,4299.8,4299.7,1e-08]
[1757096682299,6.11796004,4299.3,4299.2,1e-08]
[1757096682605,17.75135488,4299.3,4299.2,1e-08]
[1757096682903,17.84461747,4299.3,4299.2,1e-08]
[1757096683199,14.43374021,4299.3,4299.2,1e-08]
[1757096683387,18.33474021,4299.3,4299.2,1e-08]
[1757096685091,18.81064021,4299.3,4299.2,1e-08]
[1757096686168,19.35158957,4299.3,4299.2,1e-08]
[1757096686590,6.11823057,4298.8,4298.4,0.004]
[1757096686892,13.85078776,4298.5,4298.4,0.004]
[1757096687193,23.20998776,4298.5,4298.4,0.004]
[1757096687387,23.98979472,4298.5,4298.4,0.004]
[1757096688087,23.51389472,4298.5,4298.4,0.004]
[1757096688291,19.51169472,4298.5,4298.4,0.004]
[1757096688491,23.41369472,4298.5,4298.4,0.7575]
[1757096689600,23.51269472,4298.5,4298.4,0.004]
[1757096690024,19.61069472,4298.5,4298.4,0.004]
[1757096690230,23.51269472,4298.5,4298.4,0.004]
[1757096690524,19.61069472,4298.5,4298.4,0.004]
[1757096690726,23.51269472,4298.5,4298.4,0.004]
[1757096691082,19.51169472,4298.5,4298.4,0.7575]
[1757096691315,10.98729988,4298.5,4298.4,1.2318]
[1757096691626,22.52841124,4298.5,4298.4,1.2318]
[1757096691917,23.32041124,4298.5,4298.4,1.2318]
[1757096692417,15.5880164,4298.5,4298.4,1.2318]
[1757096693517,11.6860164,4298.5,4298.4,1.2318]
[1757096693724,15.5880164,4298.5,4298.4,1.2318]
[1757096695690,11.6860164,4298.5,4298.4,1.2318]
[1757096695898,15.5880164,4298.5,4298.4,1.2318]
[1757096699025,10.8940164,4298.5,4298.4,1.2318]
[1757096699223,14.7960164,4298.5,4298.4,1.2318]
[1757096700203,12.46962348,4298.5,4298.4,1.2318]
[1757096700610,4.11262348,4298.5,4298.4,1.2318]
[1757096700832,7.11262348,4298.5,4298.4,1.2318]
[1757096702532,3.21062348,4298.5,4298.4,1.2318]
[1757096702737,7.11262348,4298.5,4298.4,1.2318]
[1757096702921,3.21062348,4298.5,4298.4,1.2318]
[1757096703360,10.2631129,4298.5,4298.4,0.004]
[1757096703650,10.4734129,4298.5,4298.4,0.004]
[1757096704065,10.1641129,4298.5,4298.4,0.004]